bitfinex-derivatives/quotes_SOLF0:USTF0_20251020
["timestamp","ask_amount","ask_price","bid_price","bid_amount"]
[1760962790118,2.61,191.97,191.93,2.84]
[1760962790317,2.61,191.97,191.92,4.6882]
[1760962790318,4.6869,191.98,191.92,4.6882]
[1760962790519,7.2969,191.98,191.9,9.69955766]
[1760962790816,4.6871,191.97,191.9,7.5287]
[1760962791323,4.6871,191.97,191.91,4.6883]
[1760962792432,2.61,191.96,191.9,2.84]
[1760962794027,2.61,191.94,191.87,4.6894]
[1760962794624,2.61,191.94,191.88,2.84]
[1760962795021,7.2979,191.94,191.88,2.84]
[1760962795625,7.2979,191.94,191.88,7.5291]
[1760962796025,7.2979,191.94,191.88,2.84]
[1760962797028,7.2979,191.94,191.88,7.5292]
[1760962797429,4.6874,191.96,191.88,2.84]
[1760962797630,4.6874,191.96,191.9,7.5286]
[1760962797925,7.2968,191.98,191.9,7.5286]
[1760962798125,7.2968,191.98,191.91,4.6883]
[1760962798631,7.2968,191.98,191.92,7.5281]
[1760962799632,4.6871,191.97,191.9,4.6886]
[1760962800428,4.6871,191.97,191.91,4.6884]
[1760962800631,2.61,191.98,191.89,2.84]
[1760962801131,2.61,191.98,191.89,9.27910636]
[1760962801338,4.6862,192.01,191.91,2.84]
[1760962801536,6.00192316,192.02,191.92,9.27910636]
[1760962801742,6.00192316,192.02,191.95,4.6873]
[1760962801938,6.00192316,192.02,191.93,2.84]
[1760962802131,4.6862,192.01,191.93,2.84]
[1760962802938,4.6862,192.01,191.94,4.6876]
[1760962804838,4.6864,192.0,191.94,4.6876]
[1760962805039,7.2964,192.0,191.94,4.6876]
[1760962806138,4.6859,192.02,191.96,2.84]
[1760962806537,2.61,192.04,191.96,2.84]
[1760962806937,2.61,192.04,191.96,9.27910636]
[1760962807351,3.39192316,192.1,191.97,2.84]
[1760962807537,2.61,192.09,191.97,9.27910636]
[1760962807739,2.61,192.09,191.98,2.84]
[1760962807934,2.61,192.09,191.97,6.43910636]
[1760962807935,2.61,192.09,192.01,2.84]
[1760962808338,2.61,192.09,192.0,3.39192316]
[1760962808643,2.61,192.09,192.01,2.84]
[1760962808832,7.2932,192.13,192.05,4.6849]
[1760962809441,2.61,192.13,192.05,4.6849]
[1760962809640,4.6835,192.12,192.05,4.6849]
[1760962809835,2.61,192.13,192.06,4.6846]
[1760962810039,2.61,192.13,192.07,2.84]
[1760962810648,6.00192316,192.17,192.08,7.5242]
[1760962811451,4.6826,192.16,192.08,7.5242]
[1760962812747,2.61,192.14,192.08,2.84]
[1760962813451,7.2922,192.17,192.08,2.84]
[1760962814345,4.6825,192.16,192.08,2.84]
[1760962814546,2.61,192.15,192.08,2.84]
[1760962814949,4.6831,192.14,192.08,2.84]
[1760962815356,4.6831,192.14,192.02,2.83]
[1760962815548,4.6831,192.14,192.06,4.6846]
[1760962815744,3.39192316,192.16,192.05,2.83]
[1760962815745,2.75,192.12,192.05,2.83]
[1760962816153,2.75,192.12,192.01,2.83]
[1760962816457,2.75,192.09,192.01,2.83]
[1760962817270,4.6834,192.12,192.01,2.83]
[1760962817855,6.14192316,192.13,192.06,2.85]
[1760962818157,4.6829,192.14,192.06,2.85]
[1760962818952,4.6829,192.14,192.07,4.6844]
[1760962819253,4.6829,192.14,192.06,2.85]
[1760962819658,4.6829,192.14,192.06,7.5347]
[1760962820359,7.4333,192.13,192.06,2.85]
[1760962820566,2.75,192.13,192.06,2.85]
[1760962820966,7.4332,192.13,192.06,2.85]
[1760962822560,4.6835,192.12,192.06,2.85]
[1760962823668,4.6835,192.12,192.06,7.5347]
[1760962825464,4.6837,192.11,192.03,4.6853]
[1760962825668,2.75,192.1,192.01,2.85]
[1760962825864,6.14192316,192.1,192.01,2.85]
[1760962826064,7.4352,192.05,191.98,4.6867]
[1760962826269,2.75,192.05,191.97,2.85]
[1760962827165,2.75,192.06,191.96,4.6871]
[1760962827367,2.75,192.04,191.93,9.28910636]
[1760962827565,2.75,192.04,191.93,2.85]
[1760962827767,4.6864,192.0,191.94,4.6876]
[1760962828074,2.75,192.01,191.94,4.6876]
[1760962828675,7.4362,192.01,191.94,4.6876]
[1760962828870,9.3669,192.12,191.93,3.39192316]
[1760962828871,3.39192316,192.07,191.93,3.39192316]
[1760962829174,3.39192316,192.07,191.94,2.85]
[1760962829375,4.6852,192.05,191.94,2.85]
[1760962830073,4.6852,192.05,191.97,4.6869]
[1760962830275,7.4352,192.05,191.97,4.6869]
[1760962830663,2.75,192.05,191.95,7.5374]
[1760962831069,2.75,192.05,191.95,2.85]
[1760962831969,7.4351,192.05,191.95,2.85]
[1760962832170,7.4351,192.05,191.97,2.85]
[1760962832680,7.4351,192.05,191.98,4.6866]
[1760962832881,19.24736029,192.2,192.04,3.39192316]
[1760962832882,2.75,192.17,192.04,3.39192316]
[1760962833179,2.75,192.17,192.1,8.07552316]
[1760962833678,4.6815,192.2,192.1,3.39192316]
[1760962833878,2.75,192.21,192.13,3.39192316]
[1760962834178,2.75,192.21,192.04,6.43910636]
[1760962834179,3.39192316,192.22,192.09,3.39192316]
[1760962834379,2.75,192.21,192.09,8.07592316]
[1760962835072,3.39192316,192.22,192.09,8.07592316]
[1760962835272,4.6823,192.17,192.09,10.92592316]
[1760962835470,7.4323,192.17,192.09,6.24192316]
[1760962837073,41.32311694,192.27,192.02,6.43910636]
[1760962837074,3.39192316,192.19,192.06,8.07662316]
[1760962837273,2.75,192.15,192.03,3.39192316]
[1760962837480,2.75,192.15,192.01,2.85]
[1760962837776,4.6838,192.11,192.04,4.6852]
[1760962837983,2.75,192.11,192.02,3.39192316]
[1760962838976,4.684,192.1,192.02,8.07772316]
[1760962839173,2.75,192.11,192.02,8.07772316]
[1760962839380,2.75,192.11,192.01,2.85]
[1760962840981,4.6843,192.09,192.01,2.85]
[1760962841372,2.75,192.11,192.02,3.39192316]
[1760962841579,2.75,192.11,192.04,7.5351]
[1760962842072,2.75,192.11,192.04,2.85]
[1760962843982,4.6841,192.09,192.04,2.85]
[1760962844186,7.4341,192.09,192.04,2.85]
[1760962844880,2.75,192.08,192.04,2.85]
[1760962845080,4.6841,192.09,192.04,2.85]
[1760962845488,7.4341,192.09,192.02,4.6858]
[1760962845789,4.6836,192.11,192.03,2.85]
[1760962846389,4.6836,192.11,192.03,7.5354]
[1760962847490,4.6836,192.11,192.03,10.92732316]
[1760962847686,4.6836,192.11,192.04,4.6851]
[1760962848087,7.4332,192.13,192.05,7.5049]
[1760962848286,6.45594124,192.24,192.07,2.82]
[1760962848287,2.74,192.21,192.07,2.82]
[1760962848589,2.74,192.19,192.07,2.82]
[1760962849984,4.6828,192.15,192.07,7.5044]
[1760962852184,4.6828,192.15,192.09,3.39192316]
[1760962852591,2.74,192.16,192.09,3.39192316]
[1760962852592,2.74,192.16,192.1,2.82]
[1760962852894,2.74,192.16,192.09,8.07582316]
[1760962852895,2.74,192.16,192.12,4.98599562]
[1760962853095,2.74,192.2,192.14,2.16599562]
[1760962854102,4.682,192.18,192.14,4.98599562]
[1760962854287,7.422,192.18,192.14,4.98599562]
[1760962854600,4.682,192.18,192.15,2.82]
[1760962854794,4.6814,192.2,192.14,4.98599562]
[1760962854994,4.6814,192.2,192.09,6.43910636]
[1760962854995,4.6814,192.2,192.16,4.98599562]
[1760962855201,7.4214,192.2,192.16,4.98599562]
[1760962855896,2.74,192.19,192.16,2.16599562]
[1760962856198,2.74,192.18,192.08,9.25910636]
[1760962856402,2.74,192.18,192.08,2.82]
[1760962856594,2.74,192.18,192.11,2.16599562]
[1760962856789,4.6825,192.16,192.11,2.16599562]
[1760962856991,4.6825,192.16,192.12,2.82]
[1760962857197,2.74,192.18,192.12,2.82]
[1760962857396,2.74,192.18,192.13,2.16599562]
[1760962857701,7.422,192.18,192.14,2.82]
[1760962858003,2.74,192.22,192.15,2.16599562]
[1760962858306,2.74,192.2,192.17,2.16599562]
[1760962858599,2.74,192.25,192.17,2.16599562]
[1760962859494,2.16599562,192.24,192.17,2.16599562]
[1760962859704,4.6816,192.2,192.15,2.16599562]
[1760962860001,2.16599562,192.22,192.15,2.16599562]
[1760962860304,2.74,192.16,192.12,2.16599562]
[1760962860599,4.6823,192.17,192.12,4.98599562]
[1760962860791,4.6818,192.19,192.14,2.16599562]
[1760962860991,4.6818,192.19,192.15,2.82]
[1760962861406,4.6812,192.21,192.16,2.16599562]
[1760962861695,7.4212,192.21,192.16,2.16599562]
[1760962861996,2.74,192.2,192.16,4.98599562]
[1760962862900,7.4215,192.2,192.13,4.683]
[1760962863102,2.74,192.27,192.12,2.82]
[1760962863497,2.74,192.16,192.1,4.6837]
[1760962864304,2.74,192.16,192.08,2.82]
[1760962864504,2.74,192.23,192.08,2.82]
[1760962864706,4.6821,192.18,192.08,2.82]
[1760962865104,2.74,192.21,192.08,2.82]
[1760962866101,4.6822,192.17,192.11,7.5034]
[1760962867394,2.74,192.15,192.11,2.82]
[1760962867706,2.74,192.15,192.09,4.684]
[1760962867907,60.61289332,192.25,192.09,4.684]
[1760962868096,21.05289332,192.25,192.09,4.684]
[1760962868302,2.74,192.18,192.09,4.684]
[1760962870105,4.6827,192.15,192.1,4.6837]
[1760962870506,4.6827,192.15,192.12,2.82]
[1760962871406,2.74,192.16,192.12,2.82]
[1760962871611,2.74,192.16,192.1,4.6837]
[1760962872705,2.74,192.16,192.08,7.5042]
[1760962872910,2.74,192.19,192.04,2.82]
[1760962873208,2.74,192.19,192.04,9.25910636]
[1760962873407,5.41289332,192.2,192.04,9.25910636]
[1760962873606,2.74,192.19,192.04,9.25910636]
[1760962873799,2.76,192.19,192.04,2.82]
[1760962874409,5.41289332,192.2,192.04,2.82]
[1760962874410,2.76,192.17,192.04,9.25910636]
[1760962874802,2.76,192.17,192.04,2.82]
[1760962876109,4.6837,192.11,192.05,4.6849]
[1760962877205,4.6837,192.11,192.04,9.25910636]
[1760962877410,2.78,192.15,192.04,2.82]
[1760962877613,2.78,192.15,192.01,6.43910636]
[1760962877912,7.4642,192.09,192.0,9.06910636]
[1760962878509,4.6845,192.08,192.01,4.6859]
[1760962880501,4.684,192.1,192.03,2.63]
[1760962880701,2.78,192.19,192.04,2.63]
[1760962880901,2.78,192.19,192.05,2.63]
[1760962881115,2.78,192.19,192.08,2.63]
[1760962881317,4.682,192.18,192.11,7.3134]
[1760962881714,4.6827,192.15,192.07,12.72729332]
[1760962881917,2.78,192.22,192.07,12.72729332]
[1760962882110,14.20345593,192.23,192.07,12.72729332]
[1760962882316,2.78,192.22,192.07,12.72729332]
[1760962882514,14.20345593,192.23,192.07,12.72729332]
[1760962882710,2.1666579,192.17,192.09,2.1666579]
[1760962883018,4.9466579,192.17,192.09,2.1666579]
[1760962883314,4.6827,192.15,192.11,2.1666579]
[1760962883711,4.6827,192.15,192.11,4.7966579]
[1760962883914,4.6822,192.17,192.13,4.7966579]
[1760962884805,4.6822,192.17,192.14,2.63]
[1760962885010,4.6817,192.19,192.14,2.63]
[1760962885312,2.78,192.18,192.13,2.1666579]
[1760962885518,2.1666579,192.2,192.13,2.1666579]
[1760962885820,2.78,192.19,192.13,2.1666579]
[1760962886010,4.682,192.18,192.13,2.1666579]
[1760962886215,2.78,192.17,192.13,2.1666579]
[1760962886808,2.78,192.15,192.11,2.1666579]
[1760962887317,2.78,192.15,192.11,2.63]
[1760962887618,4.6825,192.16,192.12,2.1666579]
[1760962887820,4.6825,192.16,192.13,2.63]
[1760962889212,4.6819,192.18,192.12,4.7966579]
[1760962894219,2.78,192.23,192.16,2.1666579]
[1760962894418,2.78,192.23,192.18,4.7966579]
[1760962894623,7.4608,192.23,192.18,4.7966579]
[1760962894816,2.78,192.27,192.2,2.1666579]
[1760962895015,2.78,192.27,192.19,2.63]
[1760962895016,2.78,192.27,192.23,2.63]
[1760962895617,2.78,192.3,192.22,2.1666579]
[1760962896125,4.6796,192.28,192.22,2.1666579]
[1760962896523,4.6799,192.27,192.22,2.1666579]
[1760962896724,4.6799,192.27,192.2,2.63]
[1760962898713,4.6802,192.25,192.2,2.63]
[1760962898917,2.78,192.24,192.17,10.09151373]
[1760962901027,2.78,192.24,192.16,2.63]
[1760962901729,4.6808,192.23,192.16,2.63]
[1760962901924,2.78,192.26,192.13,4.683]
[1760962902130,2.78,192.26,192.12,2.63]
[1760962903030,4.6812,192.21,192.12,7.3132]
[1760962903728,4.6812,192.21,192.13,4.683]
[1760962904929,2.78,192.22,192.15,2.63]
[1760962905128,4.6808,192.23,192.15,2.63]
[1760962906330,7.4603,192.25,192.18,2.63]
[1760962906745,2.78,192.25,192.18,2.63]
[1760962908027,4.6806,192.24,192.18,2.63]
[1760962908933,2.78,192.25,192.18,7.3118]
[1760962909739,7.4603,192.25,192.18,7.3118]
[1760962910934,2.78,192.25,192.18,2.63]
[1760962911139,2.84,192.3,192.18,2.63]
[1760962912036,2.84,192.3,192.21,7.461]
[1760962912737,4.6796,192.28,192.23,2.78]
[1760962913037,4.6796,192.28,192.24,2.78]
[1760962913439,7.5196,192.28,192.24,2.78]
[1760962913643,7.5196,192.28,192.22,4.6808]
[1760962914633,7.5196,192.28,192.23,2.78]
[1760962914840,2.84,192.28,192.24,2.78]
[1760962915242,4.679,192.3,192.23,7.4605]
[1760962916338,2.84,192.31,192.23,2.78]
[1760962916543,4.6786,192.32,192.23,2.78]
[1760962916750,2.84,192.34,192.25,2.78]
[1760962916939,4.678,192.35,192.28,2.78]
[1760962917130,2.84,192.38,192.28,2.78]
[1760962917335,2.84,192.41,192.31,2.78]
[1760962917945,2.84,192.38,192.25,3.37898501]
[1760962918338,2.84,192.38,192.26,2.78]
[1760962918538,2.84,192.34,192.26,2.78]
[1760962918744,2.84,192.34,192.22,3.37898501]
[1760962918944,2.84,192.34,192.23,2.78]
[1760962919132,7.5189,192.31,192.23,2.78]
[1760962919335,2.84,192.31,192.23,2.78]
[1760962920338,2.84,192.29,192.19,2.78]
[1760962920538,4.6803,192.25,192.19,2.78]
[1760962921146,2.84,192.3,192.19,2.78]
[1760962921641,7.5192,192.3,192.22,7.4608]
[1760962921841,2.84,192.3,192.22,2.78]
[1760962922448,2.84,192.4,192.22,2.78]
[1760962922742,2.84,192.4,192.23,2.78]
[1760962923142,4.6778,192.35,192.28,2.78]
[1760962923534,7.5173,192.37,192.28,7.4593]
[1760962923751,9.3493,192.48,192.28,2.78]
[1760962924049,2.84,192.44,192.28,2.78]
[1760962924545,2.84,192.42,192.27,2.78]
[1760962925534,4.6769,192.39,192.32,4.6783]
[1760962925740,9.3498,192.47,192.32,2.78]
[1760962925947,2.84,192.47,192.27,2.78]
[1760962926142,2.84,192.31,192.23,2.78]
[1760962927450,2.84,192.31,192.2,4.6812]
[1760962927451,2.84,192.29,192.2,4.6812]
[1760962927947,7.5193,192.29,192.2,4.6812]
[1760962928352,7.5193,192.29,192.21,4.681]
[1760962929340,4.6796,192.28,192.21,4.681]
[1760962929645,2.84,192.29,192.19,7.4616]
[1760962929846,7.5192,192.29,192.19,2.78]
[1760962930046,7.5192,192.29,192.22,4.6809]
[1760962930845,4.6796,192.28,192.22,4.6809]
[1760962931252,2.84,192.29,192.22,4.6809]
[1760962931749,7.5193,192.29,192.22,4.6809]
[1760962932849,4.6793,192.29,192.23,2.78]
[1760962933151,2.84,192.34,192.23,2.78]
[1760962933449,7.5181,192.34,192.27,4.6795]
[1760962933953,7.5181,192.34,192.26,2.78]
[1760962934547,7.5181,192.34,192.27,4.6795]
[1760962935052,4.6784,192.33,192.26,2.78]
[1760962935253,4.6784,192.33,192.2,8.16588549]
[1760962935254,2.79,192.4,192.22,2.71]
[1760962935851,7.4689,192.31,192.24,4.6803]
[1760962936346,7.4689,192.31,192.22,2.71]
[1760962936540,4.6791,192.3,192.22,2.71]
[1760962936755,10.95588549,192.37,192.21,4.681]
[1760962936954,2.79,192.36,192.19,2.71]
[1760962937352,12.1451,192.36,192.19,2.71]
[1760962938245,12.1451,192.36,192.21,4.681]
[1760962938447,12.1451,192.36,192.19,2.71]
[1760962938448,2.88,192.35,192.19,2.71]
[1760962938851,2.88,192.33,192.19,2.71]
[1760962939552,4.6798,192.27,192.19,2.71]
[1760962939752,2.88,192.29,192.19,2.71]
[1760962940051,4.6779,192.35,192.27,2.82]
[1760962940247,2.88,192.42,192.22,9.25910636]
[1760962940445,2.88,192.39,192.22,9.25910636]
[1760962940646,2.88,192.31,192.22,2.82]
[1760962940851,2.88,192.34,192.17,2.82]
[1760962941152,4.6799,192.27,192.17,7.5019]
[1760962941854,2.88,192.28,192.17,7.5019]
[1760962942353,4.6804,192.25,192.17,7.5019]
[1760962943460,2.88,192.28,192.17,2.82]
[1760962944750,4.6808,192.23,192.17,2.82]
[1760962948157,4.681,192.22,192.17,2.82]
[1760962948759,7.5613,192.21,192.15,4.6825]
[1760962948959,7.5613,192.21,192.13,2.82]
[1760962948960,2.88,192.21,192.13,13.94210636]
[1760962950061,4.6818,192.19,192.13,13.94210636]
[1760962950654,4.6818,192.19,192.13,7.503]
[1760962953260,2.88,192.28,192.14,2.82]
[1760962953466,2.88,192.28,192.15,2.82]
[1760962953664,2.88,192.28,192.17,2.82]
[1760962953868,2.88,192.28,192.18,2.82]
[1760962954268,2.88,192.28,192.19,2.82]
[1760962954561,4.6793,192.29,192.2,2.82]
[1760962954758,2.88,192.32,192.21,2.82]
[1760962955158,4.6791,192.3,192.23,4.6805]
[1760962955461,2.88,192.32,192.21,2.82]
[1760962955664,4.6796,192.28,192.21,2.82]
[1760962955864,15.64,192.36,192.17,9.25910636]
[1760962956055,2.88,192.35,192.17,2.82]
[1760962956460,2.88,192.32,192.17,7.502]
[1760962956656,9.357,192.33,192.17,13.94110636]
[1760962956861,2.88,192.32,192.17,13.94110636]
[1760962957060,2.88,192.32,192.17,7.502]
[1760962957464,2.88,192.32,192.17,13.94110636]
[1760962957664,9.357,192.33,192.17,13.94110636]
[1760962957870,2.88,192.32,192.17,9.25910636]
[1760962958062,2.88,192.32,192.17,2.82]
[1760962958462,4.6803,192.25,192.17,2.82]
[1760962958863,4.6803,192.25,192.17,9.25910636]
[1760962959064,4.6803,192.25,192.18,4.6818]
[1760962959263,4.6803,192.25,192.17,2.82]
[1760962959465,4.6797,192.27,192.18,2.82]
[1760962959670,2.88,192.3,192.18,2.82]
[1760962961071,4.68,192.26,192.17,6.43910636]
[1760962961271,2.88,192.3,192.18,2.82]
[1760962961572,4.6795,192.28,192.22,7.5008]
[1760962962469,7.5591,192.3,192.23,4.6805]
[1760962963669,4.6791,192.3,192.24,2.82]
[1760962966373,2.88,192.35,192.2,9.25910636]
[1760962966577,9.3554,192.36,192.2,9.25910636]
[1760962967169,15.64,192.36,192.2,9.25910636]
[1760962967478,23.80588549,192.38,192.21,4.681]
[1760962967679,2.73,192.33,192.22,2.83]
[1760962969080,4.6796,192.28,192.22,2.83]
[1760962970385,4.6796,192.28,192.22,7.5108]
[1760962974477,4.6791,192.3,192.24,2.83]
[1760962975782,4.6791,192.3,192.26,2.83]
[1760962975983,4.6791,192.3,192.25,4.68]
[1760962976183,4.6791,192.3,192.27,2.83]
[1760962977086,4.6786,192.32,192.26,2.83]
[1760962977287,2.73,192.34,192.26,2.83]
[1760962977481,7.4091,192.3,192.26,2.83]
[1760962978077,7.4093,192.29,192.23,13.94960636]
[1760962978990,4.6793,192.29,192.24,4.6803]
[1760962979189,4.6793,192.29,192.26,2.83]
[1760962980293,7.4093,192.29,192.24,7.5103]
[1760962980895,7.4093,192.29,192.24,4.6803]
[1760962981097,7.4093,192.29,192.25,2.83]
[1760962981390,2.73,192.27,192.23,6.43910636]
[1760962981594,2.73,192.27,192.23,9.26910636]
[1760962981799,2.73,192.27,192.23,2.83]
[1760962981990,2.73,192.27,192.23,7.5106]
[1760962982185,4.6796,192.28,192.23,4.6806]
[1760962982389,5.40667623,192.37,192.23,4.6806]
[1760962982390,4.679,192.3,192.24,2.83]
[1760962983100,2.73,192.28,192.24,2.83]
[1760962983694,4.6792,192.29,192.24,2.83]
[1760962983899,2.73,192.28,192.24,2.83]
[1760962984992,2.73,192.26,192.22,4.6808]
[1760962985198,2.73,192.26,192.22,4.9933502]
[1760962985395,2.73,192.26,192.23,2.83]
[1760962985599,2.73,192.3,192.23,2.83]
[1760962986399,2.73,192.3,192.24,4.82329111]
[1760962986795,9.3556,192.35,192.24,4.82329111]
[1760962987098,2.1633502,192.3,192.24,4.82329111]
[1760962987305,2.73,192.23,192.22,4.82329111]
[1760962987505,20.48380799,192.37,192.19,4.82329111]
[1760962987506,2.73,192.25,192.19,4.82329111]
[1760962988191,2.73,192.21,192.19,4.82329111]
[1760962988401,2.73,192.21,192.15,6.43910636]
[1760962988795,2.73,192.21,192.14,11.43245656]
[1760962989610,4.6809,192.22,192.17,2.83]
[1760962989808,4.6809,192.22,192.16,4.9933502]
[1760962990307,4.6809,192.22,192.16,2.83]
[1760962990502,4.6809,192.22,192.16,4.9933502]
[1760962990702,7.4109,192.22,192.16,4.9933502]
[1760962992512,2.73,192.22,192.16,4.9933502]
[1760962994809,7.4111,192.22,192.16,4.9933502]
[1760962995010,2.73,192.22,192.16,2.83]
[1760962995206,4.8933502,192.22,192.14,2.1633502]
[1760962996010,4.6816,192.19,192.14,2.1633502]
[1760962996310,2.72,192.29,192.19,2.87]
[1760962996512,2.72,192.29,192.25,2.1633502]
[1760962996513,7.3993,192.29,192.25,2.1633502]
[1760962996703,4.6793,192.29,192.26,2.87]
[1760962996908,4.6793,192.29,192.23,4.6805]
[1760962997109,7.3996,192.28,192.23,2.87]
[1760962997311,2.78,192.27,192.23,2.87]
[1760962997512,2.1633502,192.3,192.22,2.1633502]
[1760962997718,7.4599,192.27,192.21,2.1633502]
[1760962997920,7.4599,192.27,192.19,9.04910636]
[1760962998212,9.3553,192.36,192.13,9.366]
[1760962998213,2.1633502,192.22,192.15,6.43910636]
[1760962998412,2.1633502,192.22,192.12,8.60245656]
[1760962998413,2.78,192.21,192.12,8.60245656]
[1760962998612,2.78,192.21,192.12,2.1633502]
[1760962998814,4.682,192.18,192.11,2.1633502]
[1760962999005,2.1633502,192.2,192.1,11.21245656]
[1760962999208,2.78,192.19,192.1,4.7733502]
[1760962999404,4.682,192.18,192.1,9.4570502]
[1760963001713,4.682,192.18,192.12,2.1633502]
[1760963002115,2.78,192.19,192.11,2.1633502]
[1760963002116,4.6822,192.17,192.11,2.1633502]
[1760963002511,2.78,192.19,192.11,2.1633502]
[1760963002721,2.78,192.15,192.11,2.1633502]
[1760963003015,2.78,192.15,192.05,44.82269234]
[1760963003016,2.78,192.15,192.07,2.1633502]
[1760963003521,2.78,192.15,192.05,6.43910636]
[1760963003522,4.683,192.14,192.1,2.61]
[1760963003709,7.463,192.14,192.1,2.61]
[1760963005115,7.463,192.14,192.09,2.1633502]
[1760963005316,2.78,192.13,192.09,2.1633502]
[1760963005622,2.78,192.12,192.08,2.1633502]
[1760963006021,4.683,192.14,192.08,2.1633502]
[1760963008524,2.78,192.12,192.08,2.1633502]
[1760963009318,4.6833,192.13,192.08,2.1633502]
[1760963009518,7.4627,192.15,192.09,2.61]
[1760963009718,7.4627,192.15,192.09,4.7733502]
[1760963011126,2.78,192.13,192.09,4.7733502]
[1760963011629,2.78,192.12,192.09,2.1633502]
[1760963011922,2.78,192.12,192.05,2.61]
[1760963011923,2.1633502,192.18,192.05,2.61]
[1760963012127,2.78,192.15,192.06,2.1633502]
[1760963012628,2.78,192.1,192.06,4.7733502]
[1760963013224,4.6837,192.11,192.06,2.1633502]
[1760963013417,4.6832,192.13,192.09,2.61]
[1760963014525,4.6822,192.17,192.12,4.7733502]
[1760963014719,4.6822,192.17,192.14,2.1633502]
[1760963015324,4.6822,192.17,192.13,2.61]
[1760963015325,2.78,192.16,192.12,2.1633502]
[1760963015630,2.78,192.15,192.12,2.1633502]
[1760963015831,2.78,192.15,192.1,2.1633502]
[1760963016026,2.78,192.18,192.1,2.1633502]
[1760963016225,2.1633502,192.17,192.08,2.1633502]
[1760963016433,2.78,192.16,192.08,2.1633502]
[1760963016730,2.78,192.12,192.08,2.1633502]
[1760963016930,2.78,192.12,192.08,4.7733502]
[1760963017832,4.6827,192.15,192.11,2.61]
[1760963018835,4.6823,192.17,192.13,2.61]
[1760963019034,7.4623,192.17,192.13,2.61]
[1760963019233,4.6825,192.16,192.13,2.61]
[1760963019727,7.4625,192.16,192.12,2.1633502]
[1760963021727,4.6825,192.16,192.12,2.1633502]
[1760963021931,4.6825,192.16,192.12,4.7733502]
[1760963022130,7.462,192.18,192.13,2.61]
[1760963023129,2.78,192.22,192.16,2.1633502]
[1760963023330,2.78,192.26,192.18,2.1633502]
[1760963023733,4.6808,192.23,192.17,4.7733502]
[1760963027331,2.1633502,192.24,192.13,7.473]
[1760963027536,2.75,192.23,192.14,2.1633502]
[1760963027939,2.75,192.18,192.13,2.79]
[1760963028241,2.75,192.21,192.13,2.79]
[1760963028445,4.9133502,192.21,192.12,2.1633502]
[1760963029139,4.682,192.18,192.12,2.1633502]
[1760963030547,4.6822,192.17,192.12,2.1633502]
[1760963030737,2.75,192.16,192.12,2.1633502]
[1760963030937,4.6822,192.17,192.12,2.1633502]
[1760963031240,2.75,192.15,192.1,9.6370502]
[1760963031443,2.75,192.15,192.11,2.79]
[1760963032139,2.75,192.19,192.12,2.1633502]
[1760963032347,2.75,192.19,192.13,2.79]
[1760963033047,2.75,192.19,192.13,7.473]
[1760963033446,2.75,192.19,192.13,2.79]